[Event "Titled Tuesday Blitz August 15 Early 2023"]
[White "Gheorghiu, Calin"]
[Black "Santos Flores, Alberto"]
[WhiteFideId "1200305"]
[BlackFideId "3601234"]
[WhiteElo "2417"]
[BlackElo "2543"]
[Result "1-0"]
[Round "6"]
[TimeControl "180+1"]
[Date "2023.08.15"]
[WhiteClock "0:00:36"]
[BlackClock "0:00:30"]
[Board "108"]

1. e4 {[%clk 0:03:00]}  e6 {[%clk 0:02:59]} 2. d4 {[%clk 0:03:00]}  d5 {[%clk 0:03:00]} 3. Nc3 {[%clk 0:02:58]}  Nf6 {[%clk 0:03:00]} 4. e5 {[%clk 0:02:57]}  Nfd7 {[%clk 0:02:59]} 5. f4 {[%clk 0:02:57]}  c5 {[%clk 0:03:00]} 6. Nf3 {[%clk 0:02:57]}  Nc6 {[%clk 0:03:00]} 7. Be3 {[%clk 0:02:56]}  Qb6 {[%clk 0:02:59]} 8. a3 {[%clk 0:02:39]}  cxd4 {[%clk 0:02:43]} 9. Nxd4 {[%clk 0:02:36]}  a6 {[%clk 0:02:31]} 10. Na4 {[%clk 0:02:06]}  Qc7 {[%clk 0:02:30]} 11. Qd2 {[%clk 0:01:49]}  b5 {[%clk 0:02:28]} 12. Nc3 {[%clk 0:01:49]}  Nxd4 {[%clk 0:02:23]} 13. Bxd4 {[%clk 0:01:49]}  Bb7 {[%clk 0:02:22]} 14. Bd3 {[%clk 0:01:43]}  Nc5 {[%clk 0:02:21]} 15. O-O {[%clk 0:01:24]}  Nxd3 {[%clk 0:02:20]} 16. cxd3 {[%clk 0:01:23]}  Bc5 {[%clk 0:02:19]} 17. Bxc5 {[%clk 0:01:19]}  Qxc5+ {[%clk 0:02:20]} 18. d4 {[%clk 0:01:20]}  Qe7 {[%clk 0:02:17]} 19. f5 {[%clk 0:01:19]}  exf5 {[%clk 0:02:16]} 20. Rxf5 {[%clk 0:01:18]}  O-O {[%clk 0:02:14]} 21. Raf1 {[%clk 0:01:19]}  Rac8 {[%clk 0:02:08]} 22. Ne2 {[%clk 0:00:51]}  Rc4 {[%clk 0:02:02]} 23. Ng3 {[%clk 0:00:51]}  Qc7 {[%clk 0:01:51]} 24. Nh5 {[%clk 0:00:46]}  h6 {[%clk 0:01:17]} 25. Nf6+ {[%clk 0:00:38]}  Kh8 {[%clk 0:00:30]} 26. Rh5 {[%clk 0:00:38]}  Rc8 {[%clk 0:00:30]} 27. Rxh6+ {[%clk 0:00:36]}  gxh6 {[%clk 0:00:30]} 28. Qxh6# {[%clk 0:00:36]} 1-0


[Site "https://www.chess.com"]

[Event "Titled Tuesday Blitz August 15 Early 2023"]
[White "Kaminski, Victor"]
[Black "Grebeniuk, Semen"]
[WhiteFideId "1131630"]
[BlackFideId "14117509"]
[WhiteElo "2301"]
[BlackElo "2533"]
[Result "0-1"]
[Round "6"]
[TimeControl "180+1"]
[Date "2023.08.15"]
[WhiteClock "0:00:00"]
[BlackClock "0:00:49"]
[Board "111"]

1. e4 {[%clk 0:02:59]}  c5 {[%clk 0:03:00]} 2. Nf3 {[%clk 0:02:58]}  Nc6 {[%clk 0:03:00]} 3. Bb5 {[%clk 0:02:58]}  g6 {[%clk 0:03:00]} 4. O-O {[%clk 0:02:58]}  Bg7 {[%clk 0:03:00]} 5. Re1 {[%clk 0:02:58]}  e5 {[%clk 0:03:00]} 6. d3 {[%clk 0:02:50]}  Nge7 {[%clk 0:02:55]} 7. c3 {[%clk 0:02:46]}  O-O {[%clk 0:02:55]} 8. a4 {[%clk 0:02:43]}  h6 {[%clk 0:02:51]} 9. Be3 {[%clk 0:02:41]}  d6 {[%clk 0:02:50]} 10. Qc1 {[%clk 0:02:41]}  Kh7 {[%clk 0:02:50]} 11. h4 {[%clk 0:02:31]}  a6 {[%clk 0:02:50]} 12. Bxc6 {[%clk 0:02:28]}  Nxc6 {[%clk 0:02:49]} 13. h5 {[%clk 0:02:27]}  gxh5 {[%clk 0:02:46]} 14. g3 {[%clk 0:02:23]}  f5 {[%clk 0:02:46]} 15. exf5 {[%clk 0:02:20]}  Bxf5 {[%clk 0:02:45]} 16. Nh4 {[%clk 0:02:20]}  Bxd3 {[%clk 0:02:45]} 17. Qd1 {[%clk 0:02:19]}  e4 {[%clk 0:02:37]} 18. Qxh5 {[%clk 0:02:17]}  Qf6 {[%clk 0:02:37]} 19. Nd2 {[%clk 0:02:10]}  Ne5 {[%clk 0:02:36]} 20. Bf4 {[%clk 0:02:01]}  d5 {[%clk 0:02:09]} 21. Kg2 {[%clk 0:01:15]}  Ng6 {[%clk 0:01:56]} 22. Nxg6 {[%clk 0:00:56]}  Qxg6 {[%clk 0:01:57]} 23. Rh1 {[%clk 0:00:55]}  d4 {[%clk 0:01:39]} 24. cxd4 {[%clk 0:00:32]}  cxd4 {[%clk 0:01:40]} 25. Qxg6+ {[%clk 0:00:16]}  Kxg6 {[%clk 0:01:40]} 26. Rhe1 {[%clk 0:00:17]}  Rfe8 {[%clk 0:01:37]} 27. Rac1 {[%clk 0:00:16]}  Rad8 {[%clk 0:01:29]} 28. Rc7 {[%clk 0:00:15]}  b5 {[%clk 0:01:19]} 29. Rc6+ {[%clk 0:00:13]}  Kh7 {[%clk 0:01:19]} 30. Rxa6 {[%clk 0:00:07]}  bxa4 {[%clk 0:01:06]} 31. Rxa4 {[%clk 0:00:08]}  Rd5 {[%clk 0:01:06]} 32. Ra7 {[%clk 0:00:07]}  Kg8 {[%clk 0:01:03]} 33. Rh1 {[%clk 0:00:07]}  e3 {[%clk 0:00:59]} 34. fxe3 {[%clk 0:00:03]}  dxe3 {[%clk 0:01:00]} 35. Nf3 {[%clk 0:00:04]}  e2 {[%clk 0:00:55]} 36. Kf2 {[%clk 0:00:04]}  Be4 {[%clk 0:00:53]} 37. Re1 {[%clk 0:00:03]}  Bd3 {[%clk 0:00:50]} 38. Nh4 {[%clk 0:00:02]}  Bd4+ {[%clk 0:00:49]} 39. Be3 {[%clk 0:00:00]}  Bxe3+ {[%clk 0:00:49]} 0-1


[Site "https://www.chess.com"]

[Event "Titled Tuesday Blitz August 15 Early 2023"]
[White "agvania123"]
[Black "FromTexas54"]
[WhiteElo "2263"]
[BlackElo "2506"]
[Result "1/2-1/2"]
[Round "6"]
[TimeControl "180+1"]
[Date "2023.08.15"]
[WhiteClock "0:01:08"]
[BlackClock "0:00:17"]
[Board "114"]

1. c4 {[%clk 0:03:00]}  g6 {[%clk 0:02:53]} 2. Nc3 {[%clk 0:02:55]}  Bg7 {[%clk 0:02:54]} 3. d4 {[%clk 0:02:56]}  d6 {[%clk 0:02:47]} 4. e4 {[%clk 0:02:55]}  Nf6 {[%clk 0:02:46]} 5. Be2 {[%clk 0:02:55]}  O-O {[%clk 0:02:45]} 6. Nf3 {[%clk 0:02:55]}  e5 {[%clk 0:02:45]} 7. O-O {[%clk 0:02:55]}  Bg4 {[%clk 0:02:44]} 8. dxe5 {[%clk 0:02:51]}  Bxf3 {[%clk 0:02:43]} 9. Bxf3 {[%clk 0:02:46]}  dxe5 {[%clk 0:02:40]} 10. Bg5 {[%clk 0:02:41]}  c6 {[%clk 0:02:39]} 11. Qc2 {[%clk 0:02:37]}  Na6 {[%clk 0:02:33]} 12. Rfd1 {[%clk 0:02:35]}  Qc7 {[%clk 0:02:13]} 13. a3 {[%clk 0:02:34]}  Nc5 {[%clk 0:02:12]} 14. b4 {[%clk 0:02:31]}  Ne6 {[%clk 0:02:12]} 15. Be3 {[%clk 0:02:31]}  Rfd8 {[%clk 0:02:00]} 16. Rxd8+ {[%clk 0:02:30]}  Rxd8 {[%clk 0:01:58]} 17. Rd1 {[%clk 0:02:30]}  Nd4 {[%clk 0:01:56]} 18. Qc1 {[%clk 0:02:13]}  Nxf3+ {[%clk 0:01:24]} 19. gxf3 {[%clk 0:02:12]}  Nh5 {[%clk 0:01:24]} 20. Ne2 {[%clk 0:02:00]}  Bf6 {[%clk 0:01:11]} 21. Rxd8+ {[%clk 0:01:59]}  Qxd8 {[%clk 0:01:10]} 22. Qd2 {[%clk 0:01:57]}  Qxd2 {[%clk 0:01:02]} 23. Bxd2 {[%clk 0:01:58]}  Be7 {[%clk 0:01:02]} 24. Be3 {[%clk 0:01:57]}  a5 {[%clk 0:01:01]} 25. c5 {[%clk 0:01:38]}  axb4 {[%clk 0:01:01]} 26. axb4 {[%clk 0:01:37]}  f5 {[%clk 0:00:56]} 27. exf5 {[%clk 0:01:36]}  gxf5 {[%clk 0:00:55]} 28. f4 {[%clk 0:01:36]}  e4 {[%clk 0:00:52]} 29. Nd4 {[%clk 0:01:36]}  Ng7 {[%clk 0:00:51]} 30. b5 {[%clk 0:01:32]}  Bxc5 {[%clk 0:00:43]} 31. bxc6 {[%clk 0:01:26]}  bxc6 {[%clk 0:00:42]} 32. Nxc6 {[%clk 0:01:26]}  Bd6 {[%clk 0:00:43]} 33. Kg2 {[%clk 0:01:16]}  Ne6 {[%clk 0:00:28]} 34. f3 {[%clk 0:01:12]}  Nxf4+ {[%clk 0:00:20]} 35. Bxf4 {[%clk 0:01:08]}  Bxf4 {[%clk 0:00:21]} 36. Ne7+ {[%clk 0:01:03]}  Kf7 {[%clk 0:00:21]} 37. Nxf5 {[%clk 0:01:03]}  exf3+ {[%clk 0:00:17]} 38. Kxf3 {[%clk 0:01:03]}  Bxh2 {[%clk 0:00:17]} 39. Kg4 {[%clk 0:01:02]}  Be5 {[%clk 0:00:17]} 40. Nh6+ {[%clk 0:01:02]}  Kg6 {[%clk 0:00:17]} 41. Nf5 {[%clk 0:01:03]}  Bf6 {[%clk 0:00:17]} 42. Nh4+ {[%clk 0:01:02]}  Kh6 {[%clk 0:00:15]} 43. Nf5+ {[%clk 0:01:02]}  Kg6 {[%clk 0:00:15]} 44. Nh4+ {[%clk 0:01:03]}  Kf7 {[%clk 0:00:15]} 45. Kh5 {[%clk 0:01:02]}  Ke6 {[%clk 0:00:14]} 46. Ng6 {[%clk 0:00:59]}  Kf7 {[%clk 0:00:11]} 47. Nh4 {[%clk 0:00:58]}  Bd8 {[%clk 0:00:10]} 48. Nf3 {[%clk 0:00:57]}  Kg7 {[%clk 0:00:10]} 49. Ng5 {[%clk 0:00:56]}  h6 {[%clk 0:00:07]} 50. Ne6+ {[%clk 0:00:57]}  Kf6 {[%clk 0:00:06]} 51. Nxd8 {[%clk 0:00:58]}  Ke7 {[%clk 0:00:05]} 52. Nb7 {[%clk 0:00:58]}  Kd7 {[%clk 0:00:06]} 53. Nc5+ {[%clk 0:00:59]}  Kc6 {[%clk 0:00:06]} 54. Nd3 {[%clk 0:01:00]}  Kd5 {[%clk 0:00:07]} 55. Nf2 {[%clk 0:01:01]}  Kd4 {[%clk 0:00:07]} 56. Nd1 {[%clk 0:01:02]}  Kc5 {[%clk 0:00:08]} 57. Nf2 {[%clk 0:01:02]}  Kd6 {[%clk 0:00:09]} 58. Nh1 {[%clk 0:01:03]}  Kc7 {[%clk 0:00:09]} 59. Ng3 {[%clk 0:01:04]}  Kd8 {[%clk 0:00:10]} 60. Nf1 {[%clk 0:01:04]}  Kc8 {[%clk 0:00:11]} 61. Ne3 {[%clk 0:01:05]}  Kb8 {[%clk 0:00:12]} 62. Nc2 {[%clk 0:01:06]}  Ka7 {[%clk 0:00:13]} 63. Ne1 {[%clk 0:01:07]}  Kb6 {[%clk 0:00:14]} 64. Nd3 {[%clk 0:01:08]}  Ka6 {[%clk 0:00:15]} 65. Nf4 {[%clk 0:01:09]}  Kb5 {[%clk 0:00:16]} 66. Ne6 {[%clk 0:01:09]}  Ka4 {[%clk 0:00:17]} 67. Nc5+ {[%clk 0:01:07]}  Ka5 {[%clk 0:00:18]} 68. Na4 {[%clk 0:01:07]}  Kxa4 {[%clk 0:00:17]} 69. Kxh6 {[%clk 0:01:08]} 1/2-1/2


[Site "https://www.chess.com"]

[Event "Titled Tuesday Blitz August 15 Early 2023"]
[White "Azhar, Puteri Munajjah Az-Zahraa"]
[Black "Martinez Reyes, Pedro Ramon"]
[WhiteFideId "5709040"]
[BlackFideId "3901807"]
[WhiteElo "2242"]
[BlackElo "2504"]
[Result "0-1"]
[Round "6"]
[TimeControl "180+1"]
[Date "2023.08.15"]
[WhiteClock "0:00:09"]
[BlackClock "0:00:21"]
[Board "115"]

1. e4 {[%clk 0:02:57]}  d6 {[%clk 0:02:55]} 2. d4 {[%clk 0:02:55]}  Nf6 {[%clk 0:02:50]} 3. Bd3 {[%clk 0:02:55]}  g6 {[%clk 0:02:46]} 4. c3 {[%clk 0:02:55]}  Bg7 {[%clk 0:02:45]} 5. Ne2 {[%clk 0:02:55]}  Nc6 {[%clk 0:02:44]} 6. O-O {[%clk 0:02:55]}  e5 {[%clk 0:02:44]} 7. h3 {[%clk 0:02:54]}  O-O {[%clk 0:02:24]} 8. Be3 {[%clk 0:02:53]}  exd4 {[%clk 0:02:00]} 9. cxd4 {[%clk 0:02:50]}  Nb4 {[%clk 0:01:53]} 10. Nbc3 {[%clk 0:02:49]}  Nxd3 {[%clk 0:01:53]} 11. Qxd3 {[%clk 0:02:48]}  Re8 {[%clk 0:01:54]} 12. f4 {[%clk 0:02:46]}  Nxe4 {[%clk 0:01:42]} 13. Nxe4 {[%clk 0:02:43]}  Qe7 {[%clk 0:01:41]} 14. N2c3 {[%clk 0:02:38]}  Bf5 {[%clk 0:01:39]} 15. Nd5 {[%clk 0:02:07]}  Qxe4 {[%clk 0:01:29]} 16. Qxe4 {[%clk 0:02:07]}  Rxe4 {[%clk 0:01:30]} 17. Nxc7 {[%clk 0:02:03]}  Rc8 {[%clk 0:01:30]} 18. Nd5 {[%clk 0:02:03]}  Kf8 {[%clk 0:00:57]} 19. Bf2 {[%clk 0:01:45]}  Bxd4 {[%clk 0:00:51]} 20. Rac1 {[%clk 0:01:43]}  Rc5 {[%clk 0:00:47]} 21. Nc3 {[%clk 0:01:31]}  Rxf4 {[%clk 0:00:45]} 22. Ne2 {[%clk 0:01:04]}  Rxc1 {[%clk 0:00:19]} 23. Nxf4 {[%clk 0:00:48]}  Rxf1+ {[%clk 0:00:18]} 24. Kxf1 {[%clk 0:00:48]}  Bxb2 {[%clk 0:00:17]} 25. Bxa7 {[%clk 0:00:48]}  Be5 {[%clk 0:00:17]} 26. Nd5 {[%clk 0:00:48]}  Be6 {[%clk 0:00:17]} 27. Nb4 {[%clk 0:00:39]}  Bc4+ {[%clk 0:00:17]} 28. Kf2 {[%clk 0:00:37]}  Ke7 {[%clk 0:00:18]} 29. Ke3 {[%clk 0:00:35]}  Ke6 {[%clk 0:00:19]} 30. a3 {[%clk 0:00:34]}  f5 {[%clk 0:00:19]} 31. Nd3 {[%clk 0:00:20]}  Bxd3 {[%clk 0:00:18]} 32. Kxd3 {[%clk 0:00:21]}  Kd5 {[%clk 0:00:19]} 33. Bf2 {[%clk 0:00:20]}  g5 {[%clk 0:00:19]} 34. g3 {[%clk 0:00:18]}  g4 {[%clk 0:00:19]} 35. hxg4 {[%clk 0:00:16]}  fxg4 {[%clk 0:00:19]} 36. a4 {[%clk 0:00:17]}  h5 {[%clk 0:00:20]} 37. a5 {[%clk 0:00:16]}  Bb2 {[%clk 0:00:20]} 38. Be3 {[%clk 0:00:13]}  Ba3 {[%clk 0:00:20]} 39. Bb6 {[%clk 0:00:12]}  Bc5 {[%clk 0:00:20]} 40. Bc7 {[%clk 0:00:12]}  Bf2 {[%clk 0:00:20]} 41. Bd8 {[%clk 0:00:10]}  Bxg3 {[%clk 0:00:21]} 42. Bg5 {[%clk 0:00:09]}  h4 {[%clk 0:00:21]} 0-1


[Site "https://www.chess.com"]

[Event "Titled Tuesday Blitz August 15 Early 2023"]
[White "Nugumanov, Bakhtiyar"]
[Black "Delorme, Axel"]
[WhiteFideId "13701797"]
[BlackFideId "632023"]
[WhiteElo "2104"]
[BlackElo "2491"]
[Result "1-0"]
[Round "6"]
[TimeControl "180+1"]
[Date "2023.08.15"]
[WhiteClock "0:00:47"]
[BlackClock "0:00:00"]
[Board "116"]

1. e4 {[%clk 0:03:00]}  c5 {[%clk 0:02:57]} 2. Nf3 {[%clk 0:02:57]}  d6 {[%clk 0:02:58]} 3. d4 {[%clk 0:02:58]}  cxd4 {[%clk 0:02:59]} 4. Nxd4 {[%clk 0:02:58]}  Nf6 {[%clk 0:02:59]} 5. Nc3 {[%clk 0:02:58]}  Bd7 {[%clk 0:02:59]} 6. g3 {[%clk 0:02:56]}  Nc6 {[%clk 0:02:56]} 7. Bg2 {[%clk 0:02:55]}  g6 {[%clk 0:02:56]} 8. h3 {[%clk 0:02:51]}  Bg7 {[%clk 0:02:55]} 9. Be3 {[%clk 0:02:50]}  Nxd4 {[%clk 0:02:52]} 10. Bxd4 {[%clk 0:02:50]}  h5 {[%clk 0:02:47]} 11. Qd2 {[%clk 0:02:47]}  Qc8 {[%clk 0:02:46]} 12. O-O-O {[%clk 0:02:44]}  O-O {[%clk 0:02:39]} 13. Kb1 {[%clk 0:02:32]}  b5 {[%clk 0:02:06]} 14. g4 {[%clk 0:01:59]}  b4 {[%clk 0:02:03]} 15. Nd5 {[%clk 0:01:58]}  Nxd5 {[%clk 0:01:52]} 16. exd5 {[%clk 0:01:58]}  Bxd4 {[%clk 0:00:56]} 17. Qxd4 {[%clk 0:01:59]}  Qc5 {[%clk 0:00:56]} 18. gxh5 {[%clk 0:01:39]}  Bf5 {[%clk 0:00:32]} 19. Qxc5 {[%clk 0:01:31]}  dxc5 {[%clk 0:00:33]} 20. hxg6 {[%clk 0:01:30]}  Bxg6 {[%clk 0:00:32]} 21. d6 {[%clk 0:01:29]}  Rae8 {[%clk 0:00:28]} 22. Bc6 {[%clk 0:01:26]}  Rc8 {[%clk 0:00:06]} 23. dxe7 {[%clk 0:01:26]}  Rxc6 {[%clk 0:00:06]} 24. exf8=Q+ {[%clk 0:01:25]}  Kxf8 {[%clk 0:00:07]} 25. h4 {[%clk 0:01:25]}  Rf6 {[%clk 0:00:07]} 26. h5 {[%clk 0:01:25]}  Bh7 {[%clk 0:00:06]} 27. Rd8+ {[%clk 0:01:22]}  Kg7 {[%clk 0:00:06]} 28. Rh2 {[%clk 0:01:19]}  Re6 {[%clk 0:00:05]} 29. Rd1 {[%clk 0:01:15]}  Re2 {[%clk 0:00:05]} 30. h6+ {[%clk 0:01:10]}  Kf6 {[%clk 0:00:03]} 31. Rc1 {[%clk 0:01:09]}  c4 {[%clk 0:00:03]} 32. b3 {[%clk 0:01:04]}  c3 {[%clk 0:00:01]} 33. Rh4 {[%clk 0:01:01]}  a5 {[%clk 0:00:02]} 34. a3 {[%clk 0:01:00]}  Rxf2 {[%clk 0:00:01]} 35. axb4 {[%clk 0:00:59]}  axb4 {[%clk 0:00:02]} 36. Rxb4 {[%clk 0:00:59]}  Kg5 {[%clk 0:00:02]} 37. Rc4 {[%clk 0:00:56]}  f5 {[%clk 0:00:01]} 38. Rxc3 {[%clk 0:00:56]}  f4 {[%clk 0:00:02]} 39. b4 {[%clk 0:00:55]}  Kxh6 {[%clk 0:00:02]} 40. b5 {[%clk 0:00:55]}  Re2 {[%clk 0:00:02]} 41. b6 {[%clk 0:00:54]}  Re7 {[%clk 0:00:02]} 42. Rh1+ {[%clk 0:00:51]}  Kg5 {[%clk 0:00:02]} 43. Rc7 {[%clk 0:00:50]}  Re6 {[%clk 0:00:01]} 44. Rcxh7 {[%clk 0:00:48]}  Rxb6+ {[%clk 0:00:02]} 45. Kc1 {[%clk 0:00:47]}  f3 {[%clk 0:00:02]} 46. Rf1 {[%clk 0:00:47]}  Kg4 {[%clk 0:00:02]} 47. Rf7 {[%clk 0:00:47]}  f2 {[%clk 0:00:00]} 48. R1xf2 {[%clk 0:00:47]} 1-0


[Site "https://www.chess.com"]

[Event "Titled Tuesday Blitz August 15 Early 2023"]
[White "Vaishali, Rameshbabu"]
[Black "Namitbir Singh Walia"]
[WhiteFideId "5091756"]
[BlackFideId "35071068"]
[WhiteElo "2641"]
[BlackElo "2402"]
[Result "1-0"]
[Round "6"]
[TimeControl "180+1"]
[Date "2023.08.15"]
[WhiteClock "0:00:14"]
[BlackClock "0:00:01"]
[Board "117"]

1. Nf3 {[%clk 0:02:58]}  d5 {[%clk 0:02:58]} 2. g3 {[%clk 0:02:57]}  Nf6 {[%clk 0:02:57]} 3. Bg2 {[%clk 0:02:57]}  g6 {[%clk 0:02:57]} 4. O-O {[%clk 0:02:47]}  Bg7 {[%clk 0:02:57]} 5. d4 {[%clk 0:02:48]}  O-O {[%clk 0:02:57]} 6. c4 {[%clk 0:02:48]}  c6 {[%clk 0:02:57]} 7. a4 {[%clk 0:02:48]}  Bf5 {[%clk 0:02:44]} 8. Nc3 {[%clk 0:02:41]}  Ne4 {[%clk 0:02:41]} 9. cxd5 {[%clk 0:02:31]}  cxd5 {[%clk 0:02:40]} 10. Qb3 {[%clk 0:02:31]}  Nxc3 {[%clk 0:02:34]} 11. bxc3 {[%clk 0:02:28]}  b6 {[%clk 0:01:58]} 12. Ne5 {[%clk 0:02:01]}  Be4 {[%clk 0:01:28]} 13. f3 {[%clk 0:01:51]}  Bf5 {[%clk 0:01:27]} 14. Bf4 {[%clk 0:01:34]}  Bxe5 {[%clk 0:00:49]} 15. Bxe5 {[%clk 0:01:30]}  Nc6 {[%clk 0:00:49]} 16. e4 {[%clk 0:01:11]}  Nxe5 {[%clk 0:00:35]} 17. exf5 {[%clk 0:00:54]}  Nc4 {[%clk 0:00:35]} 18. fxg6 {[%clk 0:00:54]}  hxg6 {[%clk 0:00:33]} 19. Ra2 {[%clk 0:00:51]}  Rc8 {[%clk 0:00:26]} 20. Re2 {[%clk 0:00:51]}  e6 {[%clk 0:00:26]} 21. f4 {[%clk 0:00:45]}  Qc7 {[%clk 0:00:27]} 22. Rf3 {[%clk 0:00:42]}  Nd6 {[%clk 0:00:24]} 23. Rd3 {[%clk 0:00:33]}  Qc4 {[%clk 0:00:24]} 24. Qd1 {[%clk 0:00:33]}  Rc7 {[%clk 0:00:21]} 25. g4 {[%clk 0:00:28]}  Rfc8 {[%clk 0:00:22]} 26. Rf2 {[%clk 0:00:24]}  Ne4 {[%clk 0:00:18]} 27. Bxe4 {[%clk 0:00:22]}  dxe4 {[%clk 0:00:19]} 28. Rh3 {[%clk 0:00:22]}  Qd5 {[%clk 0:00:17]} 29. Qd2 {[%clk 0:00:18]}  Kf8 {[%clk 0:00:11]} 30. f5 {[%clk 0:00:18]}  exf5 {[%clk 0:00:10]} 31. gxf5 {[%clk 0:00:18]}  gxf5 {[%clk 0:00:09]} 32. Qg5 {[%clk 0:00:17]}  Ke8 {[%clk 0:00:06]} 33. Rxf5 {[%clk 0:00:17]}  Qe6 {[%clk 0:00:05]} 34. Re5 {[%clk 0:00:16]}  Rxc3 {[%clk 0:00:02]} 35. Rxe6+ {[%clk 0:00:16]}  fxe6 {[%clk 0:00:02]} 36. Rh8+ {[%clk 0:00:14]}  Kd7 {[%clk 0:00:03]} 37. Qg7+ {[%clk 0:00:14]}  Kd6 {[%clk 0:00:03]} 38. Qe5+ {[%clk 0:00:14]}  Kd7 {[%clk 0:00:01]} 39. Rh7+ {[%clk 0:00:14]} 1-0


[Site "https://www.chess.com"]

[Event "Titled Tuesday Blitz August 15 Early 2023"]
[White "Hoffmann, Asa"]
[Black "Golubev, Mikhail"]
[WhiteFideId "2001470"]
[BlackFideId "14100983"]
[WhiteElo "2400"]
[BlackElo "2595"]
[Result "0-1"]
[Round "6"]
[TimeControl "180+1"]
[Date "2023.08.15"]
[WhiteClock "0:00:12"]
[BlackClock "0:00:12"]
[Board "118"]

1. d4 {[%clk 0:02:54]}  g6 {[%clk 0:03:00]} 2. e4 {[%clk 0:02:53]}  Bg7 {[%clk 0:03:00]} 3. Be3 {[%clk 0:02:53]}  Nf6 {[%clk 0:02:55]} 4. f3 {[%clk 0:02:50]}  O-O {[%clk 0:02:47]} 5. Nc3 {[%clk 0:02:49]}  d5 {[%clk 0:02:28]} 6. e5 {[%clk 0:02:49]}  Ne8 {[%clk 0:02:22]} 7. Qd2 {[%clk 0:02:49]}  c5 {[%clk 0:02:20]} 8. dxc5 {[%clk 0:02:42]}  Bxe5 {[%clk 0:01:53]} 9. Nxd5 {[%clk 0:02:37]}  Bxb2 {[%clk 0:01:50]} 10. Rb1 {[%clk 0:02:36]}  Bg7 {[%clk 0:01:44]} 11. Bg5 {[%clk 0:02:15]}  f6 {[%clk 0:01:44]} 12. Bc4 {[%clk 0:01:47]}  e6 {[%clk 0:01:32]} 13. Nc3 {[%clk 0:01:33]}  Qxd2+ {[%clk 0:00:53]} 14. Bxd2 {[%clk 0:01:32]}  Nc6 {[%clk 0:00:53]} 15. Nge2 {[%clk 0:01:31]}  Nc7 {[%clk 0:00:51]} 16. O-O {[%clk 0:01:30]}  Rd8 {[%clk 0:00:38]} 17. Bf4 {[%clk 0:01:27]}  Na6 {[%clk 0:00:34]} 18. Bd6 {[%clk 0:01:18]}  Bf8 {[%clk 0:00:31]} 19. Rfd1 {[%clk 0:01:17]}  Nxc5 {[%clk 0:00:28]} 20. Bxf8 {[%clk 0:01:08]}  Rxd1+ {[%clk 0:00:27]} 21. Rxd1 {[%clk 0:01:03]}  Kxf8 {[%clk 0:00:28]} 22. Ne4 {[%clk 0:00:56]}  Nxe4 {[%clk 0:00:27]} 23. fxe4 {[%clk 0:00:56]}  Ke7 {[%clk 0:00:27]} 24. Bb3 {[%clk 0:00:53]}  Bd7 {[%clk 0:00:25]} 25. g4 {[%clk 0:00:49]}  Ne5 {[%clk 0:00:25]} 26. h3 {[%clk 0:00:47]}  b5 {[%clk 0:00:24]} 27. Kf2 {[%clk 0:00:46]}  a5 {[%clk 0:00:23]} 28. a3 {[%clk 0:00:45]}  Rc8 {[%clk 0:00:23]} 29. Rd2 {[%clk 0:00:43]}  Rc7 {[%clk 0:00:21]} 30. Nf4 {[%clk 0:00:42]}  Rc3 {[%clk 0:00:19]} 31. Nd3 {[%clk 0:00:37]}  a4 {[%clk 0:00:15]} 32. Nxe5 {[%clk 0:00:35]}  fxe5 {[%clk 0:00:15]} 33. Ba2 {[%clk 0:00:31]}  Rxa3 {[%clk 0:00:15]} 34. c4 {[%clk 0:00:29]}  b4 {[%clk 0:00:14]} 35. Bb1 {[%clk 0:00:28]}  Ra1 {[%clk 0:00:13]} 36. Bd3 {[%clk 0:00:24]}  a3 {[%clk 0:00:13]} 37. c5 {[%clk 0:00:12]}  b3 {[%clk 0:00:12]} 0-1


[Site "https://www.chess.com"]

[Event "Titled Tuesday Blitz August 15 Early 2023"]
[White "Bilan, Danila"]
[Black "Frayna, Janelle Mae"]
[WhiteFideId "24161918"]
[BlackFideId "5212499"]
[WhiteElo "2586"]
[BlackElo "2397"]
[Result "0-1"]
[Round "6"]
[TimeControl "180+1"]
[Date "2023.08.15"]
[WhiteClock "0:00:02"]
[BlackClock "0:00:26"]
[Board "119"]

1. d4 {[%clk 0:03:00]}  Nf6 {[%clk 0:03:00]} 2. Nf3 {[%clk 0:03:01]}  g6 {[%clk 0:02:56]} 3. Bg5 {[%clk 0:03:00]}  Bg7 {[%clk 0:02:56]} 4. c3 {[%clk 0:03:01]}  O-O {[%clk 0:02:56]} 5. Nbd2 {[%clk 0:03:01]}  d6 {[%clk 0:02:53]} 6. e4 {[%clk 0:03:01]}  c5 {[%clk 0:02:54]} 7. dxc5 {[%clk 0:03:01]}  dxc5 {[%clk 0:02:54]} 8. Bc4 {[%clk 0:03:01]}  Nc6 {[%clk 0:02:53]} 9. a4 {[%clk 0:03:00]}  h6 {[%clk 0:02:52]} 10. Bh4 {[%clk 0:02:58]}  b6 {[%clk 0:02:44]} 11. Qc2 {[%clk 0:02:50]}  Ng4 {[%clk 0:02:27]} 12. O-O {[%clk 0:02:31]}  Bb7 {[%clk 0:02:23]} 13. Rad1 {[%clk 0:02:16]}  Qc8 {[%clk 0:02:01]} 14. Rfe1 {[%clk 0:02:08]}  g5 {[%clk 0:01:53]} 15. Bg3 {[%clk 0:02:04]}  Nge5 {[%clk 0:01:53]} 16. Ba2 {[%clk 0:01:52]}  Nxf3+ {[%clk 0:01:51]} 17. Nxf3 {[%clk 0:01:51]}  Rd8 {[%clk 0:01:37]} 18. e5 {[%clk 0:01:39]}  e6 {[%clk 0:01:32]} 19. Bb1 {[%clk 0:01:31]}  Qc7 {[%clk 0:01:26]} 20. Rd6 {[%clk 0:01:20]}  Ne7 {[%clk 0:01:17]} 21. Qh7+ {[%clk 0:01:15]}  Kf8 {[%clk 0:01:17]} 22. h4 {[%clk 0:01:06]}  Bxf3 {[%clk 0:00:57]} 23. gxf3 {[%clk 0:01:07]}  gxh4 {[%clk 0:00:52]} 24. Bxh4 {[%clk 0:00:59]}  Rxd6 {[%clk 0:00:51]} 25. Bf6 {[%clk 0:00:43]}  Bxf6 {[%clk 0:00:45]} 26. exf6 {[%clk 0:00:42]}  Rdd8 {[%clk 0:00:28]} 27. Qh8+ {[%clk 0:00:34]}  Ng8 {[%clk 0:00:27]} 28. Qg7+ {[%clk 0:00:24]}  Ke8 {[%clk 0:00:27]} 29. Qxg8+ {[%clk 0:00:24]}  Kd7 {[%clk 0:00:27]} 30. Qxf7+ {[%clk 0:00:22]}  Kc8 {[%clk 0:00:28]} 31. Qxe6+ {[%clk 0:00:21]}  Qd7 {[%clk 0:00:28]} 32. Qe4 {[%clk 0:00:08]}  Kc7 {[%clk 0:00:26]} 33. Qf4+ {[%clk 0:00:06]}  Qd6 {[%clk 0:00:25]} 34. Re7+ {[%clk 0:00:07]}  Rd7 {[%clk 0:00:25]} 35. Rxd7+ {[%clk 0:00:06]}  Kxd7 {[%clk 0:00:26]} 36. Bf5+ {[%clk 0:00:07]}  Kc7 {[%clk 0:00:27]} 37. Qxh6 {[%clk 0:00:04]}  Rg8+ {[%clk 0:00:25]} 38. Kh1 {[%clk 0:00:02]}  Qd1+ {[%clk 0:00:25]} 39. Kh2 {[%clk 0:00:01]}  Qg1+ {[%clk 0:00:25]} 40. Kh3 {[%clk 0:00:02]}  Qh1# {[%clk 0:00:26]} 0-1


[Site "https://www.chess.com"]